[Event "ETCC Open 2023"]
[Site "Budva"]
[Date "2023.11.12"]
[Round "2.35"]
[White "Sonis, Francesco"]
[Black "Markus, Robert"]
[Result "1/2-1/2"]
[ECO "E69"]
[WhiteElo "2564"]
[BlackElo "2582"]
[Annotator "TA"]
[PlyCount "108"]
[EventDate "2023.11.10"]
[EventType "team-tourn"]
[EventCountry "MNE"]
[SourceTitle "playchess.com"]
[Source "ChessBase"]
[SourceQuality "1"]
[WhiteTeam "Italy"]
[BlackTeam "Serbia"]
[WhiteTeamCountry "ITA"]
[BlackTeamCountry "SRB"]
[TimeControl "40/5400+30:1800+30"]

{[%evp 20,108,47,48,59,53,52,56,44,58,58,58,52,31,43,32,38,39,60,48,81,75,126,0,0,0,0,0,0,0,0,0,0,0,0,0,35,20,34,31,35,29,23,22,15,15,27,18,30,35,47,0,5,3,10,10,73,74,63,45,45,38,45,10,15,0,17,17,17,17,34,17,45,45,45,45,45,45,45,45,45,41,41,41,41,0,41,0,41,0,41]} 1. d4 {[%emt 0:00:03]} Nf6 {[%emt 0:00:09]} 2. c4 {[%emt 0:00:09]} d6 {[%emt 0:00:07]} 3. Nc3 {[%emt 0:00:15]} Nbd7 {[%emt 0:00:18]} 4. Nf3 {[%emt 0:00:06]} g6 {[%emt 0:00:10]} 5. g3 {[%emt 0:00:11]} Bg7 {[%emt 0:00:10]} 6. Bg2 {[%emt 0:00:05]} O-O {[%emt 0:00:11]} 7. O-O {[%emt 0:00:14]} e5 {[%emt 0:00:05]} 8. e4 {[%emt 0:00:06]} exd4 {[%emt 0:00:13]} 9. Nxd4 {[%emt 0:00:06]} c6 {[%emt 0:00:06] 9...Nc5 is the modern continuation.} 10. h3 {[%emt 0:00:38]} Re8 {[%emt 0:01:34]} 11. Be3 {[%emt 0:05:03]} a5 {[%emt 0:00:16] E69: King's Indian: Fianchetto: 6...Nbd7 7 0-0 e5 8 e4 c6 9 h3.} 12. Qc2 {[%emt 0:00:48]} a4 {[%emt 0:00:10]} 13. Rad1 {[%emt 0:06:47]} Qa5 {[%emt 0:00:45] White is slightly better.} 14. b3 {[%emt 0:00:08]} axb3 {[%emt 0:08:05]} 15. axb3 {[%emt 0:00:08]} Nc5 {[%emt 0:00:25]} 16. Rfe1 {[%emt 0:06:41]} Nfd7 {[%emt 0:05:04]} 17. Rb1 {[%emt 0:06:40]} Qb4 {[%emt 0:07:54]} 18. Red1 {[%emt 0:00:51]} Ne5 {[%emt 0:05:35] [#]} 19. Kh2 $146 {[%emt 0:07:21]} ({Predecessor:} 19. Nce2 Ned7 20. Kh2 Nf6 21. f3 Ncd7 22. Bd2 Qb6 23. b4 Qc7 24. Bc3 Ne5 25. Bb2 Ra2 26. Qb3 {½-½ Wojtaszek,R (2726)-Jobava,B (2707) EU-ch blitz 29th 2010 (11)}) 19... h5 {[%emt 0:04:45]} 20. Nde2 {[%emt 0:10:10]} Ra3 {[%emt 0:07:04] [#]} (20... Ned7 $142) 21. Nb5 {[%emt 0:01:05]} cxb5 $11 {[%emt 0:06:29][%cal Bc6b5,Bb5b4][%mdl 32]} 22. Bd2 {[%emt 0:00:04]} Qxb3 {[%emt 0:00:11]} 23. Rxb3 {[%emt 0:00:09]} Rxb3 {[%emt 0:00:08]} 24. Bc3 {[%emt 0:16:46] Dodges Rb2. cxb5 is the strong threat.} b4 {[%emt 0:11:02]} (24... bxc4 25. f4 $14 (25. Rxd6 b5 $11)) (24... Nxc4 25. Bxg7 Kxg7 26. Nd4 $16) 25. Bd4 {[%emt 0:16:47] [#] Bxc5 would be deadly. Really sharp!} Ra3 $1 {[%emt 0:05:07]} 26. Qb1 {[%emt 0:05:34]} b3 {[%emt 0:08:04] Threatens to win with ...Be6.} ({Don't do} 26... Nxc4 27. Bxg7 (27. Qxb4 Bxd4 28. Rxd4 Ra4 $16) 27... Kxg7 28. Qxb4 $16) 27. Nc3 {[%emt 0:07:20]} Ra5 {[%emt 0:14:32]} ({Much less strong is} 27... Nxc4 28. Bxg7 Kxg7 29. Bf1 $16) (27... Bd7 $5 {[%cal Rc5e6]}) 28. Bxc5 {[%emt 0:00:51]} Rxc5 {[%emt 0:00:23][%cal Ba5c5,Bc5c7,Bc7c6][%mdl 32]} 29. Qxb3 {[%emt 0:00:20]} Nxc4 {[%emt 0:00:46][%cal Oc4e3]} 30. Na4 {[%emt 0:00:35]} Rc7 {[%emt 0:00:44]} 31. Nb6 {[%emt 0:00:04]} Nxb6 {[%emt 0:01:38]} 32. Qxb6 {[%emt 0:00:05]} Rc6 {[%emt 0:00:13]} 33. Qb4 {[%emt 0:00:12][%mdl 1024] White has compensation.} Bf8 {[%emt 0:03:42]} 34. Qb1 {[%emt 0:08:08][%cal Oe4e5]} Rc5 {[%emt 0:01:31]} 35. h4 {[%emt 0:00:36]} b5 {[%emt 0:00:50]} 36. Rd5 {[%emt 0:01:15] aiming for Rxc5.} Rxd5 {[%emt 0:01:50]} 37. exd5 {[%emt 0:00:04]} Bd7 {[%emt 0:00:05]} (37... Re2 $11 {keeps the balance.}) 38. Bh3 $16 {[%emt 0:01:06]} f5 {[%emt 0:00:31]} 39. Bf1 {[%emt 0:00:21][%cal Ob1a1]} (39. Qa1 $5 {[%cal Ra1f6]} Re2 40. Kg1 $14) 39... Rc8 {[%emt 0:01:30]} 40. Qa1 {[%emt 0:00:32]} (40. Bxb5 $2 {is the wrong capture.} Rb8 41. Qb3 Rxb5 $19) 40... Be8 {[%emt 0:01:16]} 41. Bd3 {[%emt 0:30:33]} (41. Qe1 $5 {[%cal Re1e6]} Bf7 42. Bxb5 $14) 41... Rc5 {[%emt 0:32:45]} 42. Qb1 {[%emt 0:01:25]} (42. g4 {is more complex.} hxg4 43. h5 gxh5 44. Qf6) 42... Rxd5 {[%emt 0:00:00]} 43. Qb3 {[%emt 0:00:00]} Bf7 {[%emt 0:00:00]} 44. Bxb5 {[%emt 0:00:00] And now Bc4 would win.} Re5 {[%emt 0:00:00]} 45. Bc4 {[%emt 0:00:00]} Bxc4 {[%emt 0:00:00]} (45... d5 {keeps more tension.} 46. Qc3 Re4 47. Bd3 Bg7) 46. Qxc4+ $11 {[%emt 0:00:00][%mdl 4096] Endgame KQ-KRB} Kg7 {[%emt 0:00:00]} 47. Qc7+ {[%emt 0:00:00]} Be7 {[%emt 0:00:00]} 48. Kg2 {[%emt 0:00:00]} Kf7 {[%emt 0:00:00]} 49. Qc4+ {[%emt 0:00:00]} Kg7 {[%emt 0:00:00]} 50. f3 {[%emt 0:00:00]} Bf8 {[%emt 0:00:00]} 51. Qd4 {[%emt 0:00:00] Hoping for f4.} Kf7 {[%emt 0:00:00]} 52. Qc4+ {[%emt 0:00:00]} Kg7 {[%emt 0:00:00]} 53. Qd4 {[%emt 0:00:00] Black must now prevent f4.} Kf7 {[%emt 0:00:00]} 54. Qc4+ {[%emt 0:00:00]} Kg7 {[%emt 0:00:00] Weighted Error Value: White=0.11 (very precise) /Black=0.09 (flawless)} 1/2-1/2

[Event "ETCC Open 2023"]
[Site "Budva"]
[Date "2023.11.12"]
[Round "2.36"]
[White "Ivic, Velimir"]
[Black "Lodici, Lorenzo"]
[Result "1-0"]
[ECO "C83"]
[WhiteElo "2557"]
[BlackElo "2550"]
[Annotator "RC"]
[PlyCount "99"]
[EventDate "2023.11.10"]
[EventType "team-tourn"]
[EventCountry "MNE"]
[SourceTitle "playchess.com"]
[Source "ChessBase"]
[SourceQuality "1"]
[WhiteTeam "Serbia"]
[BlackTeam "Italy"]
[WhiteTeamCountry "SRB"]
[BlackTeamCountry "ITA"]
[TimeControl "40/5400+30:1800+30"]

1. e4 {[%emt 0:00:30]} e5 {[%emt 0:00:06]} 2. Nf3 {[%emt 0:00:00]} Nc6 {[%emt 0:00:05]} 3. Bb5 {[%emt 0:00:09]} a6 {[%emt 0:00:04]} 4. Ba4 {[%emt 0:00:05]} Nf6 {[%emt 0:00:04]} 5. O-O {[%emt 0:00:16]} Nxe4 {[%emt 1:32:41]} 6. d4 {[%emt 0:00:54]} b5 {[%emt 0:00:00]} 7. Bb3 {[%emt 0:00:04]} d5 {[%emt 0:00:00]} 8. dxe5 {[%emt 0:00:14]} Be6 {[%emt 0:00:00]} 9. c3 {[%emt 0:03:42]} Be7 {[%emt 0:00:00]} 10. h3 {[%emt 0:00:53]} O-O {[%emt 0:00:00]} 11. Bc2 {[%emt 0:00:12]} Qd7 {[%emt 0:00:00]} 12. Nbd2 {[%emt 0:01:32]} f5 {[%emt 0:00:00]} 13. exf6 {[%emt 0:00:16]} Nxf6 {[%emt 0:00:00]} 14. Re1 {[%emt 0:00:15]} Bf5 {[%emt 0:00:00]} 15. Bxf5 {[%emt 0:01:15]} Qxf5 {[%emt 0:00:00]} 16. Nf1 {[%emt 0:00:05]} Rad8 {[%emt 0:00:00]} 17. Ng3 {[%emt 0:05:29]} Qd7 {[%emt 0:00:00]} 18. a4 {[%emt 0:08:53]} Bc5 {[%emt 0:00:00]} 19. Be3 {[%emt 0:12:52]} Bxe3 {[%emt 0:00:00]} 20. Rxe3 {[%emt 0:00:09]} Rfe8 {[%emt 0:00:00]} 21. Rxe8+ {[%emt 0:03:59]} Rxe8 {[%emt 0:00:00]} 22. b4 {[%emt 0:04:30]} Ne5 {[%emt 0:00:00]} 23. Nxe5 {[%emt 0:01:38]} Rxe5 {[%emt 0:00:00]} 24. axb5 {[%emt 0:01:06]} axb5 {[%emt 0:00:00]} 25. Qd4 {[%emt 0:01:03]} Qd6 {[%emt 0:00:00]} 26. Nf1 {[%emt 0:09:15]} Re4 {[%emt 0:00:00]} 27. Ra8+ {[%emt 0:04:55]} Kf7 {[%emt 0:00:00]} 28. Qd2 {[%emt 0:02:37]} Qe5 {[%emt 0:03:01]} 29. Ne3 {[%emt 0:05:14]} d4 {[%emt 0:00:08]} 30. cxd4 {[%emt 0:01:24]} Qxd4 {[%emt 0:00:02]} 31. Qa2+ {[%emt 0:01:51]} Kg6 {[%emt 0:00:01]} 32. Ra6 {[%emt 0:12:09]} c5 {[%emt 0:04:29]} 33. bxc5 {[%emt 0:04:58]} Qxc5 {[%emt 0:00:02]} 34. Qb1 {[%emt 0:06:39]} Qb4 {[%emt 0:02:50]} 35. Qc2 {[%emt 0:00:18]} Kf7 {[%emt 0:00:32]} 36. Nf5 {[%emt 0:05:23]} Re1+ {[%emt 0:02:21]} 37. Kh2 {[%emt 0:00:01]} Qf4+ {[%emt 0:00:11]} 38. g3 {[%emt 0:00:48]} Qc1 {[%emt 0:00:48]} 39. Qb3+ {[%emt 0:02:33]} Kg6 {[%emt 0:01:08]} 40. Qf3 {[%emt 0:00:40]} Qd1 {[%emt 0:01:26]} 41. Nh4+ {[%emt 0:10:33]} Kf7 {[%emt 0:00:07]} 42. Ra7+ {[%emt 0:00:08]} Kf8 {[%emt 0:08:28]} 43. Qb7 {[%emt 0:06:00]} Nd7 {[%emt 0:00:01]} 44. Nf5 {[%emt 0:03:20]} g6 {[%emt 0:16:01]} 45. Ne3 {[%emt 0:02:36]} Qd2 {[%emt 0:01:05]} 46. Qf3+ {[%emt 0:00:23]} Ke7 {[%emt 0:06:10]} 47. Nd5+ {[%emt 0:00:48]} Kd6 {[%emt 0:00:00]} 48. Kg2 {[%emt 0:07:52]} Qc1 {[%emt 0:02:07]} 49. Nf6 {[%emt 0:02:07]} Ne5 {[%emt 0:00:30]} 50. Qd5# {[%emt 0:00:06]} 1-0

[Event "ETCC Open 2023"]
[Site "Budva"]
[Date "2023.11.12"]
[Round "2.37"]
[White "Wojtaszek, Radoslaw"]
[Black "Fedoseev, Vladimir"]
[Result "1/2-1/2"]
[ECO "E94"]
[WhiteElo "2668"]
[BlackElo "2675"]
[Annotator "TA"]
[PlyCount "85"]
[EventDate "2023.11.10"]
[EventType "team-tourn"]
[EventCountry "MNE"]
[SourceTitle "playchess.com"]
[Source "ChessBase"]
[SourceQuality "1"]
[WhiteTeam "Poland"]
[BlackTeam "Slovenia"]
[WhiteTeamCountry "POL"]
[BlackTeamCountry "SLO"]
[TimeControl "40/5400+30:1800+30"]

{[%evp 12,85,53,29,53,48,51,30,26,21,36,36,33,42,39,16,19,17,16,14,21,18,48,35,79,71,90,10,15,8,17,9,19,17,23,19,14,0,0,0,140,40,39,0,0,0,0,0,0,-13,0,-21,-12,-15,0,-21,-28,-28,0,0,0,-37,-28,-23,-21,-24,-21,-41,-7,-7,-5,-15,0,-8,-5,-8]} 1. d4 {[%emt 0:00:03]} Nf6 {[%emt 0:00:07]} 2. c4 {[%emt 0:00:03]} g6 {[%emt 0:00:05]} 3. Nc3 {[%emt 0:00:24]} Bg7 {[%emt 0:00:06]} 4. e4 {[%emt 0:00:06]} d6 {[%emt 0:00:04]} 5. Nf3 {[%emt 0:00:05]} O-O {[%emt 0:00:06]} 6. Be2 {[%emt 0:00:04]} e5 {[%emt 0:00:05]} 7. O-O {[%emt 0:00:07]} h6 {[%emt 0:00:02] E94: King's Indian: Classical: 6 Be2 e5 7 0-0: Various Black 7th moves.} 8. Re1 $1 {[%emt 0:00:43] The main line 8.Re1 scores better than 8.dxe5.} Qe7 {[%emt 0:00:05] [#]} 9. dxe5 $146 {[%emt 0:11:05]} ({Predecessor:} 9. Bf1 exd4 10. Nxd4 Nc6 11. f3 Nxd4 12. Qxd4 Nd7 13. Qf2 Ne5 14. Be3 Be6 15. Nd5 {1-0 Gukesh,D (2637)-Adhiban,B (2633) Menorca op 1st 2022 (7)}) 9... dxe5 {[%emt 0:00:09] White has an edge.} 10. Nd5 {[%emt 0:00:05]} Nxd5 {[%emt 0:10:21]} 11. cxd5 {[%emt 0:01:00]} c6 {[%emt 0:01:04]} 12. Bc4 {[%emt 0:00:24]} Rd8 {[%emt 0:04:32]} 13. Qe2 {[%emt 0:15:35]} cxd5 {[%emt 0:06:15]} 14. exd5 {[%emt 0:07:24][%cal Rf3e5]} Bg4 {[%emt 0:07:57]} 15. h3 {[%emt 0:01:12]} Bxf3 {[%emt 0:00:08]} 16. Qxf3 {[%emt 0:00:04]} Na6 {[%emt 0:00:08] Black is weak on the light squares} 17. Be3 {[%emt 0:08:11]} Qd6 {[%emt 0:03:44]} 18. Rac1 {[%emt 0:00:22] White is more active.} f5 {[%emt 0:12:10]} 19. Bxa6 {[%emt 0:03:51]} (19. Red1 $16) 19... Qxa6 $11 {[%emt 0:03:48]} 20. Red1 {[%emt 0:05:04][%cal Od5d6] next d6! is good for White.} Rd7 {[%emt 0:06:37] [#] Inhibits d6.} (20... Qxa2 21. Rc7 Qa4 22. Rxb7 $16) 21. d6 $1 {[%emt 0:05:22]} Rad8 $1 {[%emt 0:07:06]} 22. Qd5+ {[%emt 0:04:56]} Kh7 {[%emt 0:00:12][%cal Rd7d6]} 23. Bc5 {[%emt 0:01:07]} e4 {[%emt 0:04:27]} 24. Ba3 {[%emt 0:02:42]} Qb6 {[%emt 0:00:43]} 25. Qe6 {[%emt 0:06:32]} h5 {[%emt 0:04:51] [#]} (25... Qb5 $1 $11) 26. Rc2 {[%emt 0:03:50]} ({Better is} 26. g4 $1 $16 {[%cal Rg4h5]} e3 27. gxf5 (27. fxe3 f4 $16) 27... exf2+ 28. Kg2 gxf5 29. Qxf5+ Kg8 30. Qd5+ (30. Qxf2 Qxf2+ 31. Kxf2 Be5 $16) 30... Kh7 31. Qe4+ (31. Qxh5+ Bh6 $16) 31... Kg8 32. Rc5) 26... Qa5 $1 $14 {[%emt 0:03:04]} 27. Rcd2 {[%emt 0:07:56]} (27. Rc8 $5 {[%cal Rc8d8]}) 27... Qe5 {[%emt 0:01:37] Prevents Rd5.} 28. Qb3 {[%emt 0:00:42]} Bh6 {[%emt 0:04:10]} 29. Rd5 {[%emt 0:00:36]} Qe6 {[%emt 0:00:12]} 30. Re1 {[%emt 0:04:05]} h4 {[%emt 0:01:57]} 31. Kf1 {[%emt 0:00:41]} Bf4 {[%emt 0:03:23]} 32. Red1 {[%emt 0:00:38]} b6 {[%emt 0:04:08]} 33. Kg1 {[%emt 0:00:54]} e3 {[%emt 0:02:31]} 34. fxe3 {[%emt 0:00:19]} Bxe3+ {[%emt 0:01:15][%cal Bf4e3,Be3f2,Bf2g3][%mdl 32]} 35. Kh1 {[%emt 0:01:58]} Bf2 {[%emt 0:01:00] Prevents Re1.} 36. Bb4 {[%emt 0:01:27]} a5 {[%emt 0:05:10]} 37. Qf3 {[%emt 0:02:12]} Bg3 {[%emt 0:00:06]} ({Don't play} 37... axb4 38. Qxf2 Rxd6 39. Qxh4+ Kg8 40. Rxd6 (40. Qxd8+ Rxd8 41. Rxd8+ Kg7 $14) 40... Rxd6 41. Re1 $16) 38. Ba3 {[%emt 0:01:51]} Re8 {[%emt 0:02:45][%cal Oe6e1]} (38... Bxd6 $2 39. Qd3 $18) 39. Kg1 {[%emt 0:00:35]} Kg8 {[%emt 0:01:02]} (39... Qf7 $5 {[%cal Re8e4]}) 40. Rb5 {[%emt 0:02:47] The position is equal.} Qxa2 {[%emt 0:02:32]} 41. Rxb6 {[%emt 0:32:44]} Qe6 {[%emt 0:02:21]} 42. Bc5 {[%emt 0:00:00]} Qc4 {[%emt 0:03:18]} 43. Bf2 {[%emt 0:00:00] Weighted Error Value: White=0.16 (very precise) /Black=0.10 (very precise)} 1/2-1/2

[Event "ETCC Open 2023"]
[Site "Budva"]
[Date "2023.11.12"]
[Round "2.38"]
[White "Subelj, Jan"]
[Black "Teclaf, Pawel"]
[Result "1/2-1/2"]
[ECO "C48"]
[WhiteElo "2513"]
[BlackElo "2571"]
[Annotator "TA"]
[PlyCount "66"]
[EventDate "2023.11.10"]
[EventType "team-tourn"]
[EventCountry "MNE"]
[SourceTitle "playchess.com"]
[Source "ChessBase"]
[SourceQuality "1"]
[WhiteTeam "Slovenia"]
[BlackTeam "Poland"]
[WhiteTeamCountry "SLO"]
[BlackTeamCountry "POL"]
[TimeControl "40/5400+30:1800+30"]

{[%evp 10,66,27,0,0,0,0,0,0,0,0,0,15,14,10,9,24,0,0,0,-2,0,11,18,31,24,27,27,45,50,44,50,42,51,41,0,0,0,43,0,0,0,3,5,27,27,40,0,0,0,0,0,0,0,0,0,0,0,0]} 1. e4 {[%emt 0:00:12]} e5 {[%emt 0:00:04]} 2. Nf3 {[%emt 0:00:34]} Nc6 {[%emt 0:00:04]} 3. Bb5 {[%emt 0:00:43]} Nf6 {[%emt 0:00:23]} 4. d3 {[%emt 0:00:46]} Bc5 {[%emt 0:00:05]} 5. Bxc6 {[%emt 0:00:57]} dxc6 {[%emt 0:00:53]} 6. Nc3 {[%emt 0:00:49]} Qe7 {[%emt 0:05:53] is the new trend. C48: Four Knights: 4 Bb5, replies other than 4...Bb4.} 7. h3 {[%emt 0:01:25]} h6 {[%emt 0:10:55]} 8. Be3 {[%emt 0:05:29]} Bd6 {[%emt 0:00:47]} 9. Qe2 {[%emt 0:00:59]} Be6 {[%emt 0:01:33] [#]} 10. O-O-O $146 {[%emt 0:04:37]} ({Predecessor:} 10. a3 O-O-O 11. d4 exd4 12. Bxd4 c5 13. Bxf6 gxf6 14. O-O-O c6 15. Qe3 h5 16. g3 {0-1 Vasquez Schroder,R (2506)-So,W (2773) Chess.com Rapid Wk25 Swiss 2022 (4)}) 10... Nd7 {[%emt 0:09:19]} 11. d4 {[%emt 0:09:48]} exd4 {[%emt 0:16:40]} 12. Nxd4 {[%emt 0:03:54]} Bb4 {[%emt 0:07:48] Threatens to win with ...Bxc3.} 13. Nxe6 {[%emt 0:07:02]} Qxe6 {[%emt 0:00:17]} 14. Bd4 {[%emt 0:00:17]} O-O-O {[%emt 0:05:44]} 15. Qg4 {[%emt 0:12:36]} Qxg4 {[%emt 0:08:26]} 16. hxg4 {[%emt 0:00:07]} f6 {[%emt 0:00:02]} 17. Ne2 {[%emt 0:01:11]} (17. Bxa7 $2 b6 18. Ne2 Ne5 $17) 17... Bd6 {[%emt 0:00:53]} 18. f3 {[%emt 0:01:14]} (18. Bxa7 b6 19. Nd4 Kb7 $17) 18... Nf8 {[%emt 0:02:26]} 19. g5 {[%emt 0:01:16]} ({Inferior is} 19. Bxa7 b6 20. Nd4 Kb7 $17) 19... fxg5 {[%emt 0:08:40]} 20. Bxg7 {[%emt 0:00:35]} Rh7 {[%emt 0:00:02]} 21. Bxf8 {[%emt 0:03:27]} ({Reject} 21. Bxh6 Ne6 22. Bxg5 Rxh1 23. Bxd8 Rxd1+ 24. Kxd1 Kxd8 $17) 21... Rxf8 {[%emt 0:00:31]} 22. Nd4 {[%emt 0:00:08]} h5 {[%emt 0:04:32]} 23. Nf5 {[%emt 0:00:38]} h4 {[%emt 0:00:12]} 24. Kd2 {[%emt 0:09:38]} Be5 {[%emt 0:01:23]} 25. b3 {[%emt 0:00:40]} Kd7 {[%emt 0:02:39]} 26. Ke2+ {[%emt 0:00:32]} Ke6 {[%emt 0:00:08] [#]} 27. g3 $1 {[%emt 0:00:32][%cal Rg3h4]} h3 {[%emt 0:03:54]} (27... Rxf5 28. exf5+) 28. Ke3 {[%emt 0:34:24]} (28. Kf2 $5 {[%cal Rf2g1]}) 28... Bd6 {[%emt 0:00:05] The position is equal.} 29. Rh2 {[%emt 0:00:00]} Rxf5 {[%emt 0:03:16]} 30. exf5+ {[%emt 0:00:00]} Kxf5 {[%emt 0:00:03]} 31. Kf2 {[%emt 0:00:00]} Bc5+ {[%emt 0:00:18]} 32. Kf1 {[%emt 0:00:00]} Bd6 {[%emt 0:00:07]} 33. Kf2 {[%emt 0:00:00]} Bc5+ {[%emt 0:00:04] Weighted Error Value: White=0.07 (flawless) /Black=0.05 (flawless)} 1/2-1/2

[Event "ETCC Open 2023"]
[Site "Budva"]
[Date "2023.11.12"]
[Round "2.39"]
[White "Bartel, Mateusz"]
[Black "Skoberne, Jure"]
[Result "1-0"]
[ECO "C02"]
[WhiteElo "2651"]
[BlackElo "2538"]
[Annotator "TA"]
[PlyCount "63"]
[EventDate "2023.11.10"]
[EventType "team-tourn"]
[EventCountry "MNE"]
[SourceTitle "playchess.com"]
[Source "ChessBase"]
[SourceQuality "1"]
[WhiteTeam "Poland"]
[BlackTeam "Slovenia"]
[WhiteTeamCountry "POL"]
[BlackTeamCountry "SLO"]
[TimeControl "40/5400+30:1800+30"]

{[%evp 12,63,21,16,20,18,0,12,22,32,59,55,147,142,234,231,232,230,240,216,236,233,232,222,352,339,472,443,475,478,613,634,624,616,625,585,601,583,1453,1421,1383,1330,1304,1196,1178,1143,1570,1537,1595,1986,1757,1734,1558,1538]} 1. e4 {[%emt 0:00:04][%cal Be2e4,Be4e5][%mdl 32]} e6 {[%emt 0:00:04]} 2. d4 {[%emt 0:00:09]} d5 {[%emt 0:00:03]} 3. e5 {[%emt 0:00:10]} c5 {[%emt 0:00:24]} 4. c3 {[%emt 0:00:03]} Nc6 {[%emt 0:02:44]} 5. Nf3 {[%emt 0:00:08]} Bd7 {[%emt 0:01:29]} 6. Be2 {[%emt 0:00:09]} f6 {[%emt 0:11:00]} 7. O-O {[%emt 0:14:10]} fxe5 {[%emt 0:03:12] C02: French: Advance Variation.} 8. dxe5 {[%emt 0:01:13]} Nh6 {[%emt 0:10:32]} 9. c4 {[%emt 0:07:32]} d4 {[%emt 0:01:01] [#] The position is equal.} 10. b4 $1 {[%emt 0:21:09] [#]} Nxb4 $146 {[%emt 0:02:08]} (10... cxb4 11. Nbd2) ({Predecessor:} 10... cxb4 11. Bd3 Nf7 12. Re1 Be7 13. Nbd2 Qc7 14. Nb3 O-O-O 15. a3 Kb8 16. axb4 Nxb4 17. Nfxd4 Nxe5 {0-1 Shirov,A (2667)-Stocek,J (2592) Prague Challengers 1st 2019 (3)}) 11. Bxh6 {[%emt 0:03:10]} gxh6 {[%emt 0:00:21] [#]} ({Black should try} 11... d3 $1 $14 12. Be3 dxe2 13. Qxe2 Be7) 12. Nxd4 $1 $16 {[%emt 0:00:06][%cal Bf3d4,Bd4b5,Bb5d6,Bd6f7][%mdl 32]} Qb6 {[%emt 0:09:03]} (12... cxd4 $16 {is a better defense.} 13. Bh5+ Ke7) 13. Bh5+ $18 {[%emt 0:00:52]} Kd8 {[%emt 0:00:05]} 14. Nb5 {[%emt 0:03:01]} a6 {[%emt 0:02:08]} 15. Nd6 {[%emt 0:00:07]} Kc7 {[%emt 0:01:15][%cal Rf8d6]} 16. Nf7 {[%emt 0:05:48]} Rg8 {[%emt 0:00:42] [#]} 17. Nc3 $1 {[%emt 0:00:03]} (17. Bf3 Rg7 18. Nxh6 Bc6 19. Bxc6 Qxc6 $15) 17... Be7 {[%emt 0:05:35]} (17... Qa5 $142 18. Qd2 (18. Bf3 Rb8 $16) 18... Be8) 18. a3 {[%emt 0:02:14]} (18. Nxh6 Rg7 $16) (18. Bf3 Raf8 19. Nxh6 Rg7 $14) 18... Nc6 {[%emt 0:00:10]} 19. Rb1 {[%emt 0:00:36] White is clearly winning.} (19. Nxh6 Rgd8 20. Nf7 Be8 21. Nxd8 Rxd8 $18) 19... Qa7 {[%emt 0:01:17]} 20. Nd6 {[%emt 0:08:06]} (20. Nxh6 Rg7 21. Bf3 Rf8 $16) 20... Nd4 {[%emt 0:04:48]} 21. Rxb7+ {[%emt 0:00:52]} (21. Nxb7 Bc6 $15) 21... Qxb7 {[%emt 0:00:04]} 22. Nxb7 {[%emt 0:00:09] Excellent horsemanship.} Bc6 {[%emt 0:00:05][%cal Oc6g2] [#] ...Bxg2! would be deadly.} 23. Nd5+ $1 {[%emt 0:02:34]} exd5 {[%emt 0:00:32]} 24. Na5 {[%emt 0:00:08] Threatens to win with Nxc6.} Rxg2+ {[%emt 0:03:39]} 25. Kxg2 {[%emt 0:00:17]} Rg8+ {[%emt 0:00:02]} 26. Kh1 {[%emt 0:00:18]} Ba8 {[%emt 0:00:04]} 27. Rg1 {[%emt 0:01:43]} dxc4+ {[%emt 0:00:55]} 28. f3 {[%emt 0:00:02]} Rxg1+ {[%emt 0:01:42]} 29. Qxg1 {[%emt 0:02:01]} c3 {[%emt 0:01:36]} 30. Qg7 {[%emt 0:00:07][%csl LRe7,LRh6,LRh7]} Nf5 {[%emt 0:03:19]} 31. Qf7 {[%emt 0:00:10]} c2 {[%emt 0:00:07]} 32. Nb3 {[%emt 0:00:05] Black got outplayed after the opening. Magnificent play by Bartel!   Weighted Error Value: White=0.00 (flawless) /Black=0.48} (32. Qxf5 $2 {too greedy.} c1=Q+ 33. Kg2 Bd5 $19) 1-0

[Event "ETCC Open 2023"]
[Site "Budva"]
[Date "2023.11.12"]
[Round "2.40"]
[White "Borisek, Jure"]
[Black "Gumularz, Szymon"]
[Result "1/2-1/2"]
[ECO "B10"]
[WhiteElo "2568"]
[BlackElo "2580"]
[Annotator "TA"]
[PlyCount "64"]
[EventDate "2023.11.10"]
[EventType "team-tourn"]
[EventCountry "MNE"]
[SourceTitle "playchess.com"]
[Source "ChessBase"]
[SourceQuality "1"]
[WhiteTeam "Slovenia"]
[BlackTeam "Poland"]
[WhiteTeamCountry "SLO"]
[BlackTeamCountry "POL"]
[TimeControl "40/5400+30:1800+30"]

{[%evp 9,64,9,8,13,25,25,31,0,0,0,0,0,5,0,0,0,-14,-3,0,0,11,0,0,-6,0,-16,0,-36,0,0,-6,-16,-8,-31,0,-7,0,0,0,-26,0,0,0,0,0,-5,0,-8,-5,-4,-7,-12,0,0,0,0,0]} 1. e4 {[%emt 0:00:15]} c6 {[%emt 0:00:06]} 2. Nf3 {[%emt 0:00:20][%cal Bg1f3,Bf3d2,Bd2c4][%mdl 32]} d5 {[%emt 0:00:06]} 3. d3 {[%emt 0:00:06]} dxe4 {[%emt 0:02:24]} 4. dxe4 {[%emt 0:00:06]} Qxd1+ {[%emt 0:00:05]} 5. Kxd1 {[%emt 0:00:03]} Nf6 {[%emt 0:00:08]} 6. Nfd2 {[%emt 0:00:45] B10: Caro-Kann: 2 d3 and 2 c4.} g6 {[%emt 0:01:36]} 7. f3 {[%emt 0:06:21]} Bh6 {[%emt 0:00:38]} 8. Nc4 {[%emt 0:07:37] White is slightly better.} Bxc1 {[%emt 0:00:12]} 9. Kxc1 {[%emt 0:00:04]} Be6 {[%emt 0:00:21]} 10. Ne3 {[%emt 0:03:47] [#]} Nbd7 $146 {[%emt 0:01:52]} ({Predecessor:} 10... a5 11. a4 Nbd7 12. Bc4 Bxc4 13. Nxc4 Kd8 14. Rd1 Kc7 15. Nc3 Nc5 16. b3 Nfd7 {½-½ Yakubboev,N (2630)-Aravindh,C (2606) Sharjah Masters 5th 2022 (8)}) 11. a4 {[%emt 0:04:13]} O-O-O {[%emt 0:01:17]} 12. Bc4 {[%emt 0:08:46]} Bxc4 {[%emt 0:01:15]} 13. Nxc4 {[%emt 0:00:04]} g5 {[%emt 0:02:26]} 14. Nbd2 {[%emt 0:03:51]} Rhg8 {[%emt 0:15:22]} 15. Ra3 {[%emt 0:08:42]} h5 {[%emt 0:05:03]} 16. a5 {[%emt 0:06:53]} Kc7 {[%emt 0:02:32]} 17. Re1 {[%emt 0:03:00]} h4 {[%emt 0:04:54]} 18. Rc3 {[%emt 0:09:40]} Nh5 {[%emt 0:03:09]} (18... b5 $5 {[%cal Rb5c4]} 19. axb6+ axb6 $11) 19. Ne3 {[%emt 0:02:15]} Ne5 {[%emt 0:08:06]} 20. Ndc4 {[%emt 0:01:28]} Nxc4 {[%emt 0:02:46]} 21. Rxc4 {[%emt 0:00:04]} e6 {[%emt 0:10:35]} 22. Ng4 {[%emt 0:04:29]} f6 {[%emt 0:03:06]} 23. b4 {[%emt 0:09:40]} a6 {[%emt 0:00:23]} 24. Nf2 {[%emt 0:01:24]} Nf4 {[%emt 0:10:39]} 25. g3 {[%emt 0:00:29] The position is equal.} Ng6 {[%emt 0:01:37]} 26. Ng4 {[%emt 0:04:44]} Rgf8 {[%emt 0:00:37]} 27. Rd1 {[%emt 0:01:50]} Rxd1+ {[%emt 0:01:46]} 28. Kxd1 {[%emt 0:00:05]} f5 {[%emt 0:00:14]} 29. exf5 {[%emt 0:00:12]} exf5 {[%emt 0:00:03] [#] Threatens to win with ...hxg3.} 30. Nf2 $1 {[%emt 0:04:01]} Ne5 {[%emt 0:00:50][%csl LRc4,LRf3]} 31. Rc3 {[%emt 0:00:04]} hxg3 {[%emt 0:11:14]} 32. hxg3 {[%emt 0:00:09]} Rh8 {[%emt 0:05:01] Not much happened in this game.   Weighted Error Value: White=0.06 (flawless) /Black=0.06 (flawless)} 1/2-1/2